[Event "*** SCC Grand Prix: Titled Tuesday Blitz"]
[Site "Chess.com"]
[Date "2020.08.25"]
[Round "2"]
[White "FLamps8"]
[Black "annamaja"]
[Result "1-0"]
[WhiteElo "2517"]
[BlackElo "2274"]
[TimeControl "180+1"]
[EndTime "10:17:52 PDT"]
[Termination "FLamps8 won on time"]

1. d4 {[%clk 0:02:48]} 1... d5 {[%clk 0:02:59.7]} 2. c4 {[%clk 0:02:39.5]} 2...
c6 {[%clk 0:02:59.5]} 3. Nf3 {[%clk 0:02:39]} 3... Nf6 {[%clk 0:02:59.8]} 4. e3
{[%clk 0:02:39.5]} 4... e6 {[%clk 0:02:59.5]} 5. Nbd2 {[%clk 0:02:39.4]} 5...
Bd6 {[%clk 0:02:59.4]} 6. Bd3 {[%clk 0:02:39.9]} 6... O-O {[%clk 0:02:59.7]} 7.
O-O {[%clk 0:02:40.4]} 7... Nbd7 {[%clk 0:02:59.9]} 8. e4 {[%clk 0:02:40.8]}
8... dxe4 {[%clk 0:02:46]} 9. Nxe4 {[%clk 0:02:41.7]} 9... Nxe4 {[%clk
0:02:46.4]} 10. Bxe4 {[%clk 0:02:42.6]} 10... Nf6 {[%clk 0:02:39.3]} 11. Bc2
{[%clk 0:02:41.5]} 11... c5 {[%clk 0:02:37]} 12. Bg5 {[%clk 0:02:35.7]} 12...
cxd4 {[%clk 0:02:18.7]} 13. Qd3 {[%clk 0:02:33.3]} 13... g6 {[%clk 0:02:10]} 14.
Qxd4 {[%clk 0:02:28.4]} 14... Be7 {[%clk 0:02:02.9]} 15. Qh4 {[%clk 0:02:28.2]}
15... Re8 {[%clk 0:01:12.8]} 16. Rad1 {[%clk 0:02:23.7]} 16... Bd7 {[%clk
0:01:12.9]} 17. Ne5 {[%clk 0:02:22.9]} 17... Rc8 {[%clk 0:00:27.8]} 18. Ba4
{[%clk 0:01:52.9]} 18... Rc7 {[%clk 0:00:18.9]} 19. Bxd7 {[%clk 0:01:51.9]}
19... Nxd7 {[%clk 0:00:13.8]} 20. Nxf7 {[%clk 0:01:52]} 20... Bxg5 {[%clk
0:00:08.3]} 21. Nxg5 {[%clk 0:01:52.9]} 21... Qe7 {[%clk 0:00:05.2]} 22. Rfe1
{[%clk 0:01:46.2]} 22... e5 {[%clk 0:00:04.5]} 23. Rd3 {[%clk 0:01:37.9]} 23...
Nc5 {[%clk 0:00:02.5]} 24. Rf3 {[%clk 0:01:31.3]} 24... Rf8 {[%clk 0:00:01.2]}
25. Rxf8+ {[%clk 0:01:28.2]} 25... Kxf8 {[%clk 0:00:02.1]} 26. Nxh7+ {[%clk
0:01:23.7]} 26... Qxh7 {[%clk 0:00:02]} 27. Qd8+ {[%clk 0:01:23.7]} 1-0

[Event "*** SCC Grand Prix: Titled Tuesday Blitz"]
[Site "Chess.com"]
[Date "2020.08.25"]
[Round "2"]
[White "XDPS"]
[Black "Zhani-Z"]
[Result "1-0"]
[WhiteElo "2728"]
[BlackElo "2485"]
[TimeControl "180+1"]
[EndTime "10:17:55 PDT"]
[Termination "XDPS won on time"]

1. e4 {[%clk 0:03:00.9]} 1... c5 {[%clk 0:02:59.5]} 2. Nf3 {[%clk 0:02:56.9]}
2... Nf6 {[%clk 0:02:59.5]} 3. Nc3 {[%clk 0:02:53.7]} 3... d5 {[%clk 0:02:58.6]}
4. exd5 {[%clk 0:02:52.9]} 4... Nxd5 {[%clk 0:02:58.7]} 5. g3 {[%clk 0:02:53.6]}
5... Nc6 {[%clk 0:02:51.3]} 6. Bg2 {[%clk 0:02:52.8]} 6... Nc7 {[%clk
0:02:28.6]} 7. O-O {[%clk 0:02:51.4]} 7... e5 {[%clk 0:02:26.2]} 8. Re1 {[%clk
0:02:51]} 8... f6 {[%clk 0:01:53.5]} 9. Nh4 {[%clk 0:02:47.6]} 9... Be6 {[%clk
0:01:44.2]} 10. d3 {[%clk 0:02:34.5]} 10... Qd7 {[%clk 0:01:25.3]} 11. f4 {[%clk
0:02:24.3]} 11... O-O-O {[%clk 0:01:14]} 12. Be3 {[%clk 0:02:20]} 12... exf4
{[%clk 0:01:08.9]} 13. Bxf4 {[%clk 0:02:19]} 13... Bd6 {[%clk 0:00:52.2]} 14.
Bxd6 {[%clk 0:02:16.8]} 14... Qxd6 {[%clk 0:00:52.2]} 15. Ne4 {[%clk 0:02:17.4]}
15... Qd7 {[%clk 0:00:37.7]} 16. Kh1 {[%clk 0:02:13.9]} 16... b6 {[%clk
0:00:37]} 17. a3 {[%clk 0:02:13.6]} 17... f5 {[%clk 0:00:19.8]} 18. Ng5 {[%clk
0:02:12.4]} 18... Bd5 {[%clk 0:00:20.1]} 19. Bxd5 {[%clk 0:01:38]} 19... Qxd5+
{[%clk 0:00:18.4]} 20. Qf3 {[%clk 0:01:38.6]} 20... Qxf3+ {[%clk 0:00:13.1]} 21.
Nhxf3 {[%clk 0:01:39.5]} 21... Rhe8 {[%clk 0:00:07.2]} 22. Nxh7 {[%clk
0:01:38.2]} 22... Nd5 {[%clk 0:00:06.8]} 23. Nhg5 {[%clk 0:01:31.1]} 23... Ne3
{[%clk 0:00:06.9]} 24. Re2 {[%clk 0:01:27.5]} 24... Ng4 {[%clk 0:00:04.2]} 25.
Rae1 {[%clk 0:01:27.2]} 25... Rh8 {[%clk 0:00:03.8]} 26. Nf7 {[%clk 0:01:21.3]}
1-0

[Event "*** SCC Grand Prix: Titled Tuesday Blitz"]
[Site "Chess.com"]
[Date "2020.08.25"]
[Round "2"]
[White "IroniaSudby"]
[Black "chito89"]
[Result "0-1"]
[WhiteElo "2505"]
[BlackElo "2776"]
[TimeControl "180+1"]
[EndTime "10:17:57 PDT"]
[Termination "chito89 won on time"]

1. d4 {[%clk 0:03:00.9]} 1... Nf6 {[%clk 0:02:54.8]} 2. c4 {[%clk 0:03:00.2]}
2... e6 {[%clk 0:02:53.8]} 3. Nc3 {[%clk 0:02:58.2]} 3... Bb4 {[%clk 0:02:53.2]}
4. Nf3 {[%clk 0:02:58.8]} 4... b6 {[%clk 0:02:51]} 5. Bg5 {[%clk 0:02:58.2]}
5... h6 {[%clk 0:02:51.3]} 6. Bh4 {[%clk 0:02:58.4]} 6... g5 {[%clk 0:02:51.7]}
7. Bg3 {[%clk 0:02:58.8]} 7... Ne4 {[%clk 0:02:52.3]} 8. Qc2 {[%clk 0:02:59.4]}
8... Bb7 {[%clk 0:02:51.7]} 9. e3 {[%clk 0:02:39.4]} 9... Bxc3+ {[%clk
0:02:49.5]} 10. bxc3 {[%clk 0:02:39.2]} 10... d6 {[%clk 0:02:50.1]} 11. Bd3
{[%clk 0:02:36.8]} 11... f5 {[%clk 0:02:50.1]} 12. d5 {[%clk 0:02:36.6]} 12...
Na6 {[%clk 0:02:49.5]} 13. Nd4 {[%clk 0:02:36.4]} 13... Nac5 {[%clk 0:02:49.1]}
14. Nxe6 {[%clk 0:02:32.4]} 14... Nxe6 {[%clk 0:02:48.4]} 15. Bxe4 {[%clk
0:02:32.4]} 15... fxe4 {[%clk 0:02:46.2]} 16. Qxe4 {[%clk 0:02:32.6]} 16... Qf6
{[%clk 0:02:46.7]} 17. O-O {[%clk 0:02:27.3]} 17... O-O-O {[%clk 0:02:32.2]} 18.
Qxe6+ {[%clk 0:02:25.7]} 18... Qxe6 {[%clk 0:02:32.6]} 19. dxe6 {[%clk
0:02:26.6]} 19... Rde8 {[%clk 0:02:33.1]} 20. f4 {[%clk 0:02:14]} 20... Rxe6
{[%clk 0:02:33.1]} 21. Rae1 {[%clk 0:02:10.9]} 21... Rhe8 {[%clk 0:02:29.6]} 22.
fxg5 {[%clk 0:01:47.6]} 22... hxg5 {[%clk 0:02:30.5]} 23. Rf5 {[%clk 0:01:47.5]}
23... g4 {[%clk 0:02:23]} 24. Rf4 {[%clk 0:01:12.3]} 24... Re4 {[%clk
0:02:20.5]} 25. Ref1 {[%clk 0:01:07.8]} 25... Rxe3 {[%clk 0:01:16.6]} 26. Rxg4
{[%clk 0:01:04.4]} 26... Rxc3 {[%clk 0:01:17.1]} 0-1

[Event "*** SCC Grand Prix: Titled Tuesday Blitz"]
[Site "Chess.com"]
[Date "2020.08.25"]
[Round "2"]
[White "elohunter1999"]
[Black "GMJustin"]
[Result "1-0"]
[WhiteElo "2453"]
[BlackElo "2243"]
[TimeControl "180+1"]
[EndTime "10:17:57 PDT"]
[Termination "elohunter1999 won on time"]

1. e4 {[%clk 0:03:00.9]} 1... e5 {[%clk 0:02:59.4]} 2. Nf3 {[%clk 0:03:00.9]}
2... Nc6 {[%clk 0:02:58.3]} 3. Bb5 {[%clk 0:03:01.4]} 3... a6 {[%clk 0:02:55.2]}
4. Ba4 {[%clk 0:03:01.7]} 4... Nf6 {[%clk 0:02:50.5]} 5. O-O {[%clk 0:03:01.5]}
5... Be7 {[%clk 0:02:43.3]} 6. Re1 {[%clk 0:03:01.2]} 6... b5 {[%clk 0:02:41.7]}
7. Bb3 {[%clk 0:02:58.1]} 7... d6 {[%clk 0:02:41.4]} 8. c3 {[%clk 0:02:58.3]}
8... O-O {[%clk 0:02:40.9]} 9. h3 {[%clk 0:02:58.8]} 9... Na5 {[%clk 0:02:40.8]}
10. Bc2 {[%clk 0:02:58.7]} 10... c5 {[%clk 0:02:40.6]} 11. d4 {[%clk 0:02:59]}
11... Qc7 {[%clk 0:02:22.8]} 12. Nbd2 {[%clk 0:02:58]} 12... Nd7 {[%clk
0:01:51]} 13. Nf1 {[%clk 0:02:43]} 13... Nc4 {[%clk 0:01:12.2]} 14. Ng3 {[%clk
0:02:39.8]} 14... g6 {[%clk 0:01:04.4]} 15. b3 {[%clk 0:02:20.2]} 15... Ncb6
{[%clk 0:01:03]} 16. Bh6 {[%clk 0:02:16.6]} 16... Rd8 {[%clk 0:01:00.1]} 17. Qd2
{[%clk 0:02:17.1]} 17... c4 {[%clk 0:00:32.2]} 18. d5 {[%clk 0:02:07.5]} 18...
cxb3 {[%clk 0:00:25.3]} 19. axb3 {[%clk 0:02:07.4]} 19... Nc5 {[%clk 0:00:23.4]}
20. Nh2 {[%clk 0:02:03.3]} 20... a5 {[%clk 0:00:16]} 21. Rf1 {[%clk 0:01:53.3]}
21... a4 {[%clk 0:00:15.6]} 22. b4 {[%clk 0:01:48.2]} 22... Nc4 {[%clk
0:00:15.1]} 23. Qc1 {[%clk 0:01:43.1]} 23... Nd7 {[%clk 0:00:11.1]} 24. f4
{[%clk 0:01:41.7]} 24... exf4 {[%clk 0:00:10.5]} 25. Qxf4 {[%clk 0:01:41.2]}
25... Nde5 {[%clk 0:00:10.1]} 26. Kh1 {[%clk 0:01:33.2]} 26... Bd7 {[%clk
0:00:09.1]} 27. Nf3 {[%clk 0:01:29.2]} 27... a3 {[%clk 0:00:02.9]} 28. Nd4
{[%clk 0:01:26.6]} 1-0

[Event "*** SCC Grand Prix: Titled Tuesday Blitz"]
[Site "Chess.com"]
[Date "2020.08.25"]
[Round "2"]
[White "MF1966Idrisov"]
[Black "catzapto"]
[Result "1/2-1/2"]
[WhiteElo "2374"]
[BlackElo "2055"]
[TimeControl "180+1"]
[EndTime "10:17:58 PDT"]
[Termination "Game drawn by repetition"]

1. Nf3 {[%clk 0:03:00.9]} 1... c5 {[%clk 0:02:59.9]} 2. b3 {[%clk 0:03:00.9]}
2... e6 {[%clk 0:03:00.1]} 3. c4 {[%clk 0:03:00.3]} 3... Nf6 {[%clk 0:02:58.1]}
4. Bb2 {[%clk 0:03:00.4]} 4... d5 {[%clk 0:02:58.3]} 5. cxd5 {[%clk 0:02:57.8]}
5... exd5 {[%clk 0:02:58.5]} 6. d4 {[%clk 0:02:58]} 6... cxd4 {[%clk 0:02:55.7]}
7. Nxd4 {[%clk 0:02:57.3]} 7... Nc6 {[%clk 0:02:56]} 8. g3 {[%clk 0:02:57.3]}
8... Bb4+ {[%clk 0:02:51]} 9. Nc3 {[%clk 0:02:25.2]} 9... Ne4 {[%clk 0:02:48.8]}
10. Qd3 {[%clk 0:02:03.7]} 10... Qf6 {[%clk 0:02:36.1]} 11. O-O-O {[%clk
0:01:39.4]} 11... Qxd4 {[%clk 0:02:13.8]} 12. Qxd4 {[%clk 0:01:38.9]} 12... Nxd4
{[%clk 0:02:12.9]} 13. Nxe4 {[%clk 0:01:34.7]} 13... Nxb3+ {[%clk 0:01:56.9]}
14. axb3 {[%clk 0:01:33.2]} 14... dxe4 {[%clk 0:01:57.3]} 15. Bxg7 {[%clk
0:01:26.8]} 15... Rg8 {[%clk 0:01:56.9]} 16. Bf6 {[%clk 0:01:24.3]} 16... Be6
{[%clk 0:01:54.6]} 17. Rd4 {[%clk 0:01:15.8]} 17... Rc8+ {[%clk 0:01:51.9]} 18.
Kb1 {[%clk 0:01:12.6]} 18... Ba3 {[%clk 0:01:41.3]} 19. Bg2 {[%clk 0:01:10.1]}
19... Rg6 {[%clk 0:01:32.5]} 20. Bh4 {[%clk 0:01:00.1]} 20... Bxb3 {[%clk
0:01:30.4]} 21. Rxe4+ {[%clk 0:00:56.4]} 21... Re6 {[%clk 0:01:30.6]} 22. Rxe6+
{[%clk 0:00:53.2]} 22... fxe6 {[%clk 0:01:31.5]} 23. Bxb7 {[%clk 0:00:47.1]}
23... Rc2 {[%clk 0:01:31.3]} 24. Bf6 {[%clk 0:00:38.4]} 24... Kf7 {[%clk
0:01:27.1]} 25. Bd4 {[%clk 0:00:37.2]} 25... Rxe2 {[%clk 0:01:23.1]} 26. Bxa7
{[%clk 0:00:36.4]} 26... Rb2+ {[%clk 0:00:54.4]} 27. Ka1 {[%clk 0:00:35.6]}
27... Ra2+ {[%clk 0:00:52]} 28. Kb1 {[%clk 0:00:35.1]} 28... Rb2+ {[%clk
0:00:52.3]} 29. Ka1 {[%clk 0:00:34.8]} 29... Ra2+ {[%clk 0:00:52.6]} 30. Kb1
{[%clk 0:00:35.1]} 30... Rb2+ {[%clk 0:00:52.9]} 1/2-1/2

[Event "*** SCC Grand Prix: Titled Tuesday Blitz"]
[Site "Chess.com"]
[Date "2020.08.25"]
[Round "2"]
[White "Artur0208"]
[Black "fabianvivasz"]
[Result "1-0"]
[WhiteElo "2688"]
[BlackElo "2304"]
[TimeControl "180+1"]
[EndTime "10:18:01 PDT"]
[Termination "Artur0208 won on time"]

1. d4 {[%clk 0:03:00.9]} 1... Nf6 {[%clk 0:02:59.3]} 2. c4 {[%clk 0:03:01.3]}
2... g6 {[%clk 0:02:58.4]} 3. Nc3 {[%clk 0:03:01.6]} 3... d5 {[%clk 0:02:57.5]}
4. Bf4 {[%clk 0:02:58.5]} 4... Bg7 {[%clk 0:02:55.9]} 5. e3 {[%clk 0:02:59]}
5... O-O {[%clk 0:02:55.2]} 6. Rc1 {[%clk 0:02:59.5]} 6... c5 {[%clk 0:02:51.6]}
7. dxc5 {[%clk 0:03:00.4]} 7... dxc4 {[%clk 0:02:46.2]} 8. Qxd8 {[%clk
0:02:59.3]} 8... Rxd8 {[%clk 0:02:46.5]} 9. Bxc4 {[%clk 0:03:00]} 9... Na6
{[%clk 0:02:42.5]} 10. Bxa6 {[%clk 0:02:58.5]} 10... bxa6 {[%clk 0:02:43.4]} 11.
Nf3 {[%clk 0:02:58.7]} 11... Nh5 {[%clk 0:02:38.8]} 12. Be5 {[%clk 0:02:53.3]}
12... f6 {[%clk 0:02:26.3]} 13. Bg3 {[%clk 0:02:52.7]} 13... Nxg3 {[%clk
0:02:24.8]} 14. hxg3 {[%clk 0:02:53.6]} 14... Rb8 {[%clk 0:02:24.8]} 15. b3
{[%clk 0:02:52.2]} 15... a5 {[%clk 0:01:46.6]} 16. O-O {[%clk 0:02:47.7]} 16...
Ba6 {[%clk 0:01:45.7]} 17. Rfd1 {[%clk 0:02:48.1]} 17... Kf7 {[%clk 0:01:43.4]}
18. Nd5 {[%clk 0:02:42.2]} 18... Rbc8 {[%clk 0:01:39.4]} 19. e4 {[%clk
0:02:20.8]} 19... e6 {[%clk 0:01:33.6]} 20. Ne3 {[%clk 0:02:18.9]} 20... Rxd1+
{[%clk 0:01:31]} 21. Rxd1 {[%clk 0:02:19.8]} 21... Ke7 {[%clk 0:01:22.5]} 22.
Rc1 {[%clk 0:02:16.7]} 22... Bh6 {[%clk 0:01:14.1]} 23. e5 {[%clk 0:02:14.1]}
23... f5 {[%clk 0:01:06]} 24. Nd4 {[%clk 0:02:11.7]} 24... f4 {[%clk 0:00:54.1]}
25. Ng4 {[%clk 0:02:11.5]} 25... Bg5 {[%clk 0:00:52.9]} 26. Nf3 {[%clk
0:01:56.2]} 26... h6 {[%clk 0:00:48.5]} 27. Nxg5 {[%clk 0:01:55.4]} 27... hxg5
{[%clk 0:00:49.4]} 28. Nf6 {[%clk 0:01:53.8]} 28... Bb7 {[%clk 0:00:37.4]} 29.
Rd1 {[%clk 0:01:49.7]} 29... Bc6 {[%clk 0:00:25.5]} 30. Rd6 {[%clk 0:01:49.8]}
30... a4 {[%clk 0:00:16.4]} 31. b4 {[%clk 0:01:49.3]} 31... Bb5 {[%clk 0:00:16]}
32. a3 {[%clk 0:01:48.5]} 32... a5 {[%clk 0:00:14.7]} 33. Rb6 {[%clk 0:01:44.3]}
33... axb4 {[%clk 0:00:09.3]} 34. Rb7+ {[%clk 0:01:44.1]} 34... Kf8 {[%clk
0:00:07.6]} 35. Rxb5 {[%clk 0:01:43.5]} 35... bxa3 {[%clk 0:00:03.5]} 36. Ra5
{[%clk 0:01:43.9]} 1-0

[Event "*** SCC Grand Prix: Titled Tuesday Blitz"]
[Site "Chess.com"]
[Date "2020.08.25"]
[Round "2"]
[White "Justinz"]
[Black "isainz"]
[Result "1-0"]
[WhiteElo "2398"]
[BlackElo "2101"]
[TimeControl "180+1"]
[EndTime "10:18:01 PDT"]
[Termination "Justinz won on time"]

1. e4 {[%clk 0:03:00.1]} 1... c5 {[%clk 0:02:58.7]} 2. Nf3 {[%clk 0:02:59.5]}
2... Nc6 {[%clk 0:02:56.3]} 3. d4 {[%clk 0:02:59.8]} 3... cxd4 {[%clk
0:02:55.7]} 4. Nxd4 {[%clk 0:03:00.4]} 4... Nf6 {[%clk 0:02:55.9]} 5. Nc3 {[%clk
0:03:00.2]} 5... e5 {[%clk 0:02:55.9]} 6. Ndb5 {[%clk 0:02:59.1]} 6... d6 {[%clk
0:02:56.1]} 7. Bg5 {[%clk 0:02:58.6]} 7... a6 {[%clk 0:02:55]} 8. Na3 {[%clk
0:02:59]} 8... b5 {[%clk 0:02:55]} 9. Nd5 {[%clk 0:02:57.1]} 9... Be7 {[%clk
0:02:55]} 10. Bxf6 {[%clk 0:02:57.5]} 10... Bxf6 {[%clk 0:02:55.1]} 11. c4
{[%clk 0:02:57.6]} 11... b4 {[%clk 0:02:53.3]} 12. Nc2 {[%clk 0:02:56.6]} 12...
a5 {[%clk 0:02:53.7]} 13. Qf3 {[%clk 0:02:53.8]} 13... Bg5 {[%clk 0:02:24.5]}
14. h4 {[%clk 0:02:51.9]} 14... Bxh4 {[%clk 0:02:10.2]} 15. Rd1 {[%clk
0:02:49.8]} 15... Be6 {[%clk 0:02:04.2]} 16. Rxh4 {[%clk 0:02:46.9]} 16... Qxh4
{[%clk 0:01:55.5]} 17. Nc7+ {[%clk 0:02:45.3]} 17... Ke7 {[%clk 0:01:53.7]} 18.
Nxa8 {[%clk 0:02:44.7]} 18... Rxa8 {[%clk 0:01:50.5]} 19. Qe3 {[%clk 0:02:34.5]}
19... Qg4 {[%clk 0:01:38.6]} 20. c5 {[%clk 0:02:28]} 20... Rd8 {[%clk
0:01:20.9]} 21. Bb5 {[%clk 0:02:20.6]} 21... Qxg2 {[%clk 0:00:57.1]} 22. cxd6+
{[%clk 0:02:11.2]} 22... Rxd6 {[%clk 0:00:54.6]} 23. Qc5 {[%clk 0:02:00.9]}
23... Qxe4+ {[%clk 0:00:48.8]} 24. Ne3 {[%clk 0:02:00]} 24... Qh1+ {[%clk
0:00:44.9]} 25. Bf1 {[%clk 0:01:27.1]} 25... Nd4 {[%clk 0:00:08.2]} 26. Rd3
{[%clk 0:01:17.9]} 26... Nf3+ {[%clk 0:00:04.6]} 27. Ke2 {[%clk 0:01:16.3]}
27... Nd4+ {[%clk 0:00:04.4]} 28. Kd1 {[%clk 0:01:16.3]} 28... Bg4+ {[%clk
0:00:02]} 29. Kc1 {[%clk 0:01:14.9]} 1-0

[Event "*** SCC Grand Prix: Titled Tuesday Blitz"]
[Site "Chess.com"]
[Date "2020.08.25"]
[Round "2"]
[White "MomchilPetkov"]
[Black "julinha97"]
[Result "1-0"]
[WhiteElo "2554"]
[BlackElo "2280"]
[TimeControl "180+1"]
[EndTime "10:18:02 PDT"]
[Termination "MomchilPetkov won by resignation"]

1. e4 {[%clk 0:03:00.9]} 1... c5 {[%clk 0:02:59.3]} 2. Nf3 {[%clk 0:02:59.5]}
2... d6 {[%clk 0:02:58.9]} 3. d4 {[%clk 0:02:59.7]} 3... cxd4 {[%clk 0:02:59.8]}
4. Nxd4 {[%clk 0:03:00.4]} 4... Nf6 {[%clk 0:03:00.2]} 5. Nc3 {[%clk 0:03:00.8]}
5... g6 {[%clk 0:03:00.7]} 6. g3 {[%clk 0:02:56.7]} 6... Nc6 {[%clk 0:02:57.9]}
7. Nde2 {[%clk 0:02:55.6]} 7... Bg7 {[%clk 0:02:57.7]} 8. Bg2 {[%clk 0:02:55.6]}
8... O-O {[%clk 0:02:58.1]} 9. O-O {[%clk 0:02:55.9]} 9... Bd7 {[%clk
0:02:43.8]} 10. h3 {[%clk 0:02:55]} 10... Rc8 {[%clk 0:02:42.8]} 11. a4 {[%clk
0:02:53.4]} 11... a6 {[%clk 0:02:10]} 12. Nd5 {[%clk 0:02:46.7]} 12... Be6
{[%clk 0:01:55.1]} 13. Nef4 {[%clk 0:02:40.6]} 13... g5 {[%clk 0:01:35.9]} 14.
Nxf6+ {[%clk 0:02:30.7]} 14... exf6 {[%clk 0:01:29.8]} 15. Nd5 {[%clk
0:02:17.9]} 15... h6 {[%clk 0:01:19.4]} 16. f4 {[%clk 0:02:14.9]} 16... f5
{[%clk 0:01:17.2]} 17. fxg5 {[%clk 0:02:11.1]} 17... Bxd5 {[%clk 0:01:09]} 18.
exd5 {[%clk 0:02:06.6]} 18... Nd4 {[%clk 0:01:02.9]} 19. c3 {[%clk 0:02:02.3]}
19... hxg5 {[%clk 0:00:46.5]} 20. cxd4 {[%clk 0:02:00.8]} 20... Qf6 {[%clk
0:00:42.5]} 21. Kh2 {[%clk 0:01:57.3]} 21... Rc4 {[%clk 0:00:34]} 22. Qd3 {[%clk
0:01:54.1]} 22... Rxd4 {[%clk 0:00:28.5]} 23. Qxf5 {[%clk 0:01:54.2]} 23... Qxf5
{[%clk 0:00:22.3]} 24. Rxf5 {[%clk 0:01:55.1]} 24... f6 {[%clk 0:00:22.7]} 25.
Be3 {[%clk 0:01:42]} 25... Rd3 {[%clk 0:00:22.2]} 26. Re1 {[%clk 0:01:39.8]}
26... Rc8 {[%clk 0:00:22.1]} 27. Be4 {[%clk 0:01:32.8]} 27... Rb3 {[%clk
0:00:20.3]} 28. Bd4 {[%clk 0:01:25.6]} 28... Rc4 {[%clk 0:00:14.6]} 29. Bc3
{[%clk 0:01:25]} 29... Rxa4 {[%clk 0:00:14.5]} 30. Bc2 {[%clk 0:01:23.9]} 30...
Rxc3 {[%clk 0:00:10.7]} 31. bxc3 {[%clk 0:01:23.7]} 31... Ra2 {[%clk 0:00:11.2]}
32. Re2 {[%clk 0:01:24.1]} 32... b5 {[%clk 0:00:10.2]} 33. Rff2 {[%clk
0:01:23.9]} 1-0

[Event "*** SCC Grand Prix: Titled Tuesday Blitz"]
[Site "Chess.com"]
[Date "2020.08.25"]
[Round "2"]
[White "Makswolf200817"]
[Black "paulrusan"]
[Result "0-1"]
[WhiteElo "2405"]
[BlackElo "2196"]
[TimeControl "180+1"]
[EndTime "10:18:02 PDT"]
[Termination "paulrusan won by resignation"]

1. d4 {[%clk 0:03:00.9]} 1... Nf6 {[%clk 0:02:59.4]} 2. c4 {[%clk 0:03:00.7]}
2... g6 {[%clk 0:02:59.6]} 3. Nf3 {[%clk 0:03:00.1]} 3... Bg7 {[%clk 0:02:59.8]}
4. g3 {[%clk 0:03:00.3]} 4... d6 {[%clk 0:02:59.8]} 5. Bg2 {[%clk 0:03:00.4]}
5... O-O {[%clk 0:02:59.9]} 6. O-O {[%clk 0:03:01]} 6... c6 {[%clk 0:03:00.1]}
7. Nc3 {[%clk 0:03:01]} 7... Bf5 {[%clk 0:03:00.1]} 8. d5 {[%clk 0:02:51.5]}
8... Ne4 {[%clk 0:02:57.5]} 9. Qb3 {[%clk 0:02:42.5]} 9... Nxc3 {[%clk
0:02:54.8]} 10. bxc3 {[%clk 0:02:42.8]} 10... Qb6 {[%clk 0:02:48.2]} 11. Bd2
{[%clk 0:02:30.5]} 11... Na6 {[%clk 0:02:38.6]} 12. Nd4 {[%clk 0:02:26.2]} 12...
Qxb3 {[%clk 0:02:07.5]} 13. axb3 {[%clk 0:02:25]} 13... cxd5 {[%clk 0:02:07.8]}
14. Bxd5 {[%clk 0:02:21]} 14... Nc5 {[%clk 0:02:01.1]} 15. Nxf5 {[%clk
0:02:14.3]} 15... gxf5 {[%clk 0:02:00.4]} 16. Rfb1 {[%clk 0:02:14.6]} 16... e6
{[%clk 0:01:53.1]} 17. Bf3 {[%clk 0:02:11.2]} 17... a5 {[%clk 0:01:51.8]} 18. b4
{[%clk 0:02:10.7]} 18... axb4 {[%clk 0:01:50.9]} 19. Rxa8 {[%clk 0:02:07.9]}
19... Rxa8 {[%clk 0:01:49.1]} 20. cxb4 {[%clk 0:02:08]} 20... Ne4 {[%clk
0:01:39.8]} 21. Be1 {[%clk 0:01:46.6]} 21... Ra2 {[%clk 0:01:38.1]} 22. g4
{[%clk 0:01:42.2]} 22... Rc2 {[%clk 0:01:24.9]} 23. gxf5 {[%clk 0:01:41.3]}
23... exf5 {[%clk 0:01:24.7]} 24. c5 {[%clk 0:01:01.5]} 24... dxc5 {[%clk
0:01:21.4]} 25. bxc5 {[%clk 0:00:54.5]} 25... Rxc5 {[%clk 0:01:19.9]} 26. Rxb7
{[%clk 0:00:53.1]} 26... Rc1 {[%clk 0:01:16.8]} 27. Rb8+ {[%clk 0:00:53.1]}
27... Bf8 {[%clk 0:01:16.3]} 28. Kf1 {[%clk 0:00:53.3]} 28... Nd2+ {[%clk
0:01:16.2]} 29. Kg2 {[%clk 0:00:47.9]} 29... Rxe1 {[%clk 0:01:16.2]} 30. Bh5
{[%clk 0:00:45.8]} 30... Ne4 {[%clk 0:01:13.2]} 31. Rb7 {[%clk 0:00:43.6]} 31...
Nd6 {[%clk 0:01:13.3]} 32. Rd7 {[%clk 0:00:43.2]} 32... Kg7 {[%clk 0:01:09.5]}
33. e3 {[%clk 0:00:42.6]} 33... Kf6 {[%clk 0:01:08.2]} 34. Kf3 {[%clk
0:00:38.5]} 34... Be7 {[%clk 0:01:07.8]} 35. Kf4 {[%clk 0:00:36.9]} 35... Ne4
{[%clk 0:01:02.9]} 36. f3 {[%clk 0:00:35.4]} 36... Bd6+ {[%clk 0:01:02.8]} 0-1

[Event "*** SCC Grand Prix: Titled Tuesday Blitz"]
[Site "Chess.com"]
[Date "2020.08.25"]
[Round "2"]
[White "GoldenShare"]
[Black "praveenb2002"]
[Result "0-1"]
[WhiteElo "2499"]
[BlackElo "2757"]
[TimeControl "180+1"]
[EndTime "10:18:03 PDT"]
[Termination "praveenb2002 won by resignation"]

1. e4 {[%clk 0:02:59.9]} 1... c5 {[%clk 0:02:59.7]} 2. Nf3 {[%clk 0:02:58.4]}
2... d6 {[%clk 0:02:59.7]} 3. d4 {[%clk 0:02:58.7]} 3... cxd4 {[%clk 0:02:59.3]}
4. Nxd4 {[%clk 0:02:59.6]} 4... Nf6 {[%clk 0:02:58.3]} 5. Nc3 {[%clk 0:03:00.2]}
5... Nc6 {[%clk 0:02:57.9]} 6. Bg5 {[%clk 0:02:58.1]} 6... e6 {[%clk 0:02:58]}
7. Qd2 {[%clk 0:02:50.4]} 7... a6 {[%clk 0:02:58.1]} 8. O-O-O {[%clk 0:02:48.2]}
8... Bd7 {[%clk 0:02:58.2]} 9. f4 {[%clk 0:02:41.1]} 9... Be7 {[%clk 0:02:57.8]}
10. Nf3 {[%clk 0:02:40.3]} 10... b5 {[%clk 0:02:57.8]} 11. e5 {[%clk 0:02:38.1]}
11... b4 {[%clk 0:02:54.2]} 12. exd6 {[%clk 0:02:34.5]} 12... bxc3 {[%clk
0:02:53.4]} 13. Qxc3 {[%clk 0:02:35.4]} 13... Bf8 {[%clk 0:02:47.3]} 14. Bc4
{[%clk 0:02:22.9]} 14... Rc8 {[%clk 0:02:38]} 15. Bxa6 {[%clk 0:02:21.3]} 15...
Rb8 {[%clk 0:02:37.4]} 16. f5 {[%clk 0:02:09.8]} 16... Qa5 {[%clk 0:02:32.6]}
17. fxe6 {[%clk 0:01:46.6]} 17... fxe6 {[%clk 0:02:24.4]} 18. Bxf6 {[%clk
0:01:10.6]} 18... gxf6 {[%clk 0:02:23.5]} 19. Qxf6 {[%clk 0:01:10.8]} 19... Rg8
{[%clk 0:02:23.9]} 20. Rhe1 {[%clk 0:00:58.5]} 20... Bg7 {[%clk 0:02:08.8]} 21.
Rxe6+ {[%clk 0:00:51.2]} 21... Bxe6 {[%clk 0:02:09.7]} 22. Qxe6+ {[%clk
0:00:51.8]} 22... Kf8 {[%clk 0:02:10.3]} 23. Nd4 {[%clk 0:00:31.1]} 23... Qg5+
{[%clk 0:01:59.2]} 24. Kb1 {[%clk 0:00:27.4]} 24... Rxb2+ {[%clk 0:01:49.4]} 25.
Kxb2 {[%clk 0:00:26.4]} 25... Bxd4+ {[%clk 0:01:48.1]} 26. c3 {[%clk 0:00:18.6]}
26... Qxg2+ {[%clk 0:01:43.5]} 27. Kb3 {[%clk 0:00:16.2]} 27... Kg7 {[%clk
0:01:36.3]} 28. cxd4 {[%clk 0:00:11.4]} 28... Rb8+ {[%clk 0:01:36.2]} 29. Kc4
{[%clk 0:00:05]} 29... Qxa2+ {[%clk 0:01:32.8]} 30. Kc5 {[%clk 0:00:05.4]} 30...
Qxe6 {[%clk 0:01:30.8]} 31. d5 {[%clk 0:00:05.2]} 31... Qe3+ {[%clk 0:01:27.7]}
32. Kxc6 {[%clk 0:00:05.4]} 32... Qb6+ {[%clk 0:01:28.3]} 33. Kd7 {[%clk
0:00:05.9]} 33... Qa7+ {[%clk 0:01:28.1]} 34. Ke6 {[%clk 0:00:05.8]} 34... Re8+
{[%clk 0:01:28.3]} 35. Kf5 {[%clk 0:00:05.6]} 35... Qf7+ {[%clk 0:01:28.9]} 0-1